bitfinex-derivatives/quotes_ETHF0:USTF0_20241007
["timestamp","ask_amount","ask_price","bid_price","bid_amount"]
[1728298186081,0.3992,2451.9,2451.8,5.27962]
[1728298186390,0.40788,2452.1,2452.0,0.40787]
[1728298186592,0.80608,2452.1,2452.0,3.61567]
[1728298189094,1.21238,2452.1,2452.0,3.61567]
[1728298191092,0.80608,2452.1,2452.0,3.61567]
[1728298191291,0.3982,2452.1,2452.0,3.61567]
[1728298191991,1.4383,2452.3,2452.0,3.61567]
[1728298191992,0.40785,2452.3,2452.2,0.40785]
[1728298193791,0.40785,2452.2,2452.1,5.27936]
[1728298195599,0.40785,2452.2,2452.1,0.4115]
[1728298195793,0.81405,2452.2,2452.1,0.81937]
[1728298200598,0.40785,2452.2,2452.1,0.81937]
[1728298202599,2.70861503,2452.4,2452.1,5.27937]
[1728298202794,0.40784,2452.3,2452.2,0.40784]
[1728298203905,0.40785,2452.2,2452.1,0.81937]
[1728298204403,0.40785,2452.2,2451.7,1.01981]
[1728298204404,8.9328,2452.2,2451.7,0.40793]
[1728298204604,0.40792,2451.8,2451.7,0.81363]
[1728298205607,0.80712,2451.8,2451.7,0.81363]
[1728298206006,0.80712,2451.8,2451.7,0.4057]
[1728298206207,0.80712,2451.8,2451.7,0.81364]
[1728298208205,0.80712,2451.8,2451.7,0.4057]
[1728298208398,0.80712,2451.8,2451.7,0.81364]
[1728298208602,0.80712,2451.8,2451.7,0.4057]
[1728298210714,0.80712,2451.8,2451.7,0.81364]
[1728298211213,0.80712,2451.8,2451.7,0.4057]
[1728298213509,0.40795,2451.6,2451.5,3.61577]
[1728298215703,0.81795,2451.6,2451.5,3.61577]
[1728298216709,0.41,2451.6,2451.4,0.79528]
[1728298216907,0.40797,2451.5,2451.4,0.79528]
[1728298219013,0.40797,2451.5,2451.4,0.3873]
[1728298220412,0.408,2451.3,2451.2,0.40802]
[1728298220613,0.408,2451.3,2451.2,0.4251]
[1728298221117,0.8149,2451.3,2451.2,0.4251]
[1728298221508,0.40804,2451.1,2451.0,5.26294]
[1728298222011,1.85366,2451.3,2451.1,0.40802]
[1728298222012,0.40803,2451.2,2451.1,0.40802]
[1728298222804,0.40804,2451.1,2451.0,5.26294]
[1728298224307,0.40803,2451.2,2451.1,0.40802]
[1728298225019,0.40803,2451.2,2451.0,4.8549]
[1728298225209,0.40804,2451.1,2451.0,5.26294]
[1728298227019,0.40804,2451.1,2451.0,4.8549]
[1728298227213,0.40804,2451.1,2451.0,5.26295]
[1728298227610,0.40804,2451.1,2451.0,4.8549]
[1728298228016,0.40804,2451.1,2451.0,4.46]
[1728298228216,0.40804,2451.1,2450.9,3.61586]
[1728298228217,0.40805,2451.0,2450.9,3.2078]
[1728298228413,0.80145,2451.0,2450.9,3.61587]
[1728298229123,0.80145,2451.0,2450.9,3.2078]
[1728298231218,0.80145,2451.0,2450.9,3.61587]
[1728298232214,0.80145,2451.0,2450.9,3.2078]
[1728298234721,0.80145,2451.0,2450.9,3.61587]
[1728298235122,0.80145,2451.0,2450.9,3.2078]
[1728298235716,0.80145,2451.0,2450.9,3.61587]
[1728298235926,0.80145,2451.0,2450.9,3.2078]
[1728298239627,0.80145,2451.0,2450.9,3.61587]
[1728298239826,0.80145,2451.0,2450.9,3.2078]
[1728298241930,0.40805,2451.0,2450.9,3.61587]
[1728298242124,1.42692,2451.3,2450.9,6.28797]
[1728298242428,0.40804,2451.2,2451.1,0.40804]
[1728298243624,0.40804,2451.2,2451.0,0.8199]
[1728298243825,0.40804,2451.1,2451.0,3.28794]
[1728298244329,0.40803,2451.2,2451.1,0.40802]
[1728298248336,0.40804,2451.1,2451.0,4.43574]
[1728298248526,0.40804,2451.1,2451.0,4.01704]
[1728298254143,0.40804,2451.1,2451.0,0.80924]
[1728298263950,0.40804,2451.2,2451.1,0.40802]
[1728298264147,0.40804,2451.2,2451.1,2.46802]
[1728298264547,1.42692,2451.3,2451.2,0.40802]
[1728298264548,0.81491,2451.3,2451.2,0.40802]
[1728298264757,0.81491,2451.3,2451.2,0.80352]
[1728298266156,0.4069,2451.3,2451.2,0.80352]
[1728298266355,0.408,2451.4,2451.3,0.40799]
[1728298266755,0.408,2451.4,2451.3,0.82469]
[1728298268157,1.68871852,2451.5,2451.4,0.40799]
[1728298268358,0.81008,2451.5,2451.4,0.40799]
[1728298269257,0.81008,2451.5,2451.4,2.46799]
[1728298273761,0.4021,2451.5,2451.4,2.46799]
[1728298273962,0.81007,2451.5,2451.4,2.46799]
[1728298274265,0.4021,2451.5,2451.4,2.46799]
[1728298274667,0.81007,2451.5,2451.4,2.46799]
[1728298274965,1.01985,2451.7,2451.4,6.1392]
[1728298275165,0.40796,2451.6,2451.5,3.61575]
[1728298275558,0.40796,2451.6,2451.5,7.69497]
[1728298277967,0.40796,2451.6,2451.5,3.61577]
[1728298281666,0.80125,2451.7,2451.6,0.40795]
[1728298281865,0.80125,2451.7,2451.6,2.46795]
[1728298282172,0.80125,2451.7,2451.6,2.88695]
[1728298284261,0.80125,2451.7,2451.6,6.09475]
[1728298285175,0.3933,2451.7,2451.6,6.09475]
[1728298285875,0.80124,2451.7,2451.6,6.09475]
[1728298288871,0.40794,2451.7,2451.6,6.09475]
[1728298289175,0.40789,2452.1,2452.0,0.40787]
[1728298289475,0.40789,2452.1,2452.0,3.61567]
[1728298289874,0.82559,2452.1,2452.0,3.61567]
[1728298290671,0.3899,2452.2,2452.1,0.40787]
[1728298290868,0.3899,2452.2,2452.1,4.48627]
[1728298291069,0.50279,2452.6,2452.1,4.48627]
[1728298291070,0.095,2452.6,2452.5,0.4078]
[1728298291270,1.01916,2453.4,2452.6,0.40779]
[1728298291271,0.4222,2452.7,2452.6,0.40779]
[1728298291466,0.4222,2452.7,2452.6,2.85929]
[1728298293876,0.095,2453.2,2452.8,1.01939]
[1728298294078,0.3959,2453.0,2452.9,0.40774]
[1728298294277,0.3959,2453.0,2452.9,2.46774]
[1728298296280,0.80362,2453.0,2452.9,2.46774]
[1728298298479,0.40764,2453.5,2453.4,0.40764]
[1728298298669,0.7786,2453.7,2453.4,2.06]
[1728298298874,0.40764,2453.5,2453.4,2.06]
[1728298299080,0.40764,2453.5,2453.2,3.2078]
[1728298299081,0.40767,2453.3,2453.2,3.2078]
[1728298299477,0.40767,2453.3,2453.2,3.61549]
[1728298300076,0.3949,2453.4,2453.2,3.2078]
[1728298300271,0.80487,2453.3,2453.2,3.61548]
[1728298303088,0.80487,2453.3,2453.2,3.61549]
[1728298303383,0.80487,2453.3,2452.9,2.155]
[1728298303384,0.40772,2453.0,2452.9,3.3028]
[1728298303679,0.40779,2452.6,2452.5,3.61559]
[1728298305778,1.20928,2452.7,2452.6,0.40779]
[1728298305973,0.40779,2452.6,2452.5,3.2078]
[1728298306180,1.20928,2452.7,2452.6,0.40779]
[1728298306579,5.28688,2452.7,2452.6,0.40779]
[1728298310185,1.20928,2452.7,2452.6,0.40779]
[1728298310687,5.28688,2452.7,2452.6,0.40779]
[1728298310990,0.8015,2452.7,2452.6,2.46779]
[1728298311491,1.20927,2452.7,2452.6,2.46779]
[1728298314787,0.40779,2452.6,2452.5,5.67559]
[1728298316082,1.20928,2452.7,2452.6,0.40779]
[1728298319186,0.40779,2452.6,2452.5,5.67559]
[1728298327593,0.40779,2452.6,2452.5,6.07989]
[1728298328181,0.40777,2452.8,2452.7,0.40775]
[1728298328389,0.40777,2452.8,2452.7,0.80765]
[1728298328586,0.40777,2452.8,2452.7,0.3999]
[1728298328783,0.81287,2452.8,2452.7,0.80767]
[1728298329192,0.81287,2452.8,2452.7,0.3999]
[1728298329593,0.81287,2452.8,2452.7,0.80767]
[1728298332486,0.81287,2452.8,2452.7,2.86767]
[1728298333895,0.40774,2453.0,2452.9,0.40772]
[1728298334200,0.4144,2453.1,2453.0,0.40772]
[1728298334389,0.4144,2453.1,2453.0,6.92992]
[1728298335394,0.5018,2453.4,2453.0,6.5222]
[1728298335695,0.4175,2453.5,2453.2,5.2678]
[1728298335902,0.4175,2453.5,2453.4,2.46765]
[1728298336403,0.82514,2453.5,2453.4,2.46765]
[1728298336697,0.82514,2453.5,2453.2,3.2078]
[1728298336698,0.4175,2453.5,2453.3,2.06]
[1728298336886,0.4175,2453.5,2453.3,2.46767]
[1728298336887,0.83005,2453.4,2453.3,2.46767]
[1728298337092,0.4224,2453.4,2453.2,5.2678]
[1728298337394,0.4224,2453.4,2453.1,0.80689]
[1728298337395,0.40769,2453.2,2453.1,0.80689]
[1728298337595,0.4077,2453.1,2453.0,2.46771]
[1728298338499,0.7969,2453.1,2453.0,0.40771]
[1728298338901,0.40772,2453.0,2452.9,6.08233]
[1728298339101,0.82742,2453.0,2452.9,6.08233]
[1728298341296,0.4197,2453.0,2452.9,6.08233]
[1728298341503,0.82742,2453.0,2452.9,6.08233]
[1728298343690,0.4197,2453.0,2452.9,6.08233]
[1728298345805,0.79691,2453.1,2452.9,5.6746]
[1728298346109,0.8777908,2453.3,2453.0,2.06]
[1728298346305,0.40768,2453.3,2453.2,3.61549]
[1728298346709,0.40768,2453.3,2453.2,4.01409]
[1728298349107,0.8247,2453.4,2453.3,0.40767]
[1728298349108,1.23236,2453.4,2453.3,0.40767]
[1728298349504,1.01911,2453.5,2453.4,0.40764]
[1728298349505,0.40765,2453.5,2453.4,0.40764]
[1728298349711,0.82765,2453.5,2453.4,0.40764]
[1728298355108,0.82764,2453.5,2453.4,0.40764]
[1728298355917,0.42,2453.5,2453.4,0.40764]
[1728298356410,1.23933,2453.6,2453.4,2.06]
[1728298356411,0.4072,2453.6,2453.4,2.06]
[1728298356616,0.81482,2453.6,2453.5,0.40764]
[1728298356823,0.4072,2453.6,2453.5,0.80884]
[1728298357115,0.81482,2453.6,2453.5,0.80884]
[1728298361114,1.21312,2453.6,2453.5,0.80884]
[1728298364111,1.21312,2453.6,2453.5,0.4012]
[1728298365518,0.40766,2453.4,2453.3,0.40765]
[1728298365715,0.40766,2453.4,2453.3,0.79285]
[1728298366219,1.82459,2453.6,2453.3,0.3852]
[1728298366421,0.40765,2453.5,2453.4,0.40764]
[1728298367214,0.40765,2453.5,2453.4,0.40765]
[1728298382132,1.28615565,2453.5,2453.4,0.40765]
[1728298386635,0.40765,2453.5,2453.4,0.40765]
[1728298387135,0.4072,2453.6,2453.3,5.653]
[1728298387340,0.4072,2453.6,2453.5,2.46764]
[1728298391546,0.4072,2453.6,2453.5,2.85874]
[1728298392747,0.81482,2453.6,2453.5,2.85874]
[1728298393440,0.4072,2453.6,2453.5,2.85874]
[1728298393748,1.44278,2453.8,2453.5,2.4511]
[1728298393941,0.40762,2453.6,2453.5,0.79873]
[1728298394144,0.40765,2453.5,2453.4,0.40764]
[1728298394343,1.28605736,2453.5,2453.4,0.40764]
[1728298394537,0.40765,2453.5,2453.4,0.40764]
[1728298394737,2.28392736,2453.7,2453.3,3.2078]
[1728298394933,0.40763,2453.6,2453.5,0.40762]
[1728298397050,9.3438,2453.6,2453.1,1.16327207]
[1728298397243,0.40772,2453.0,2452.9,3.2078]
[1728298397440,2.46772,2453.0,2452.9,3.2078]
[1728298397953,1.28612736,2453.0,2452.9,3.2078]
[1728298399246,1.28612736,2453.0,2452.9,3.61554]
[1728298399441,1.28612736,2453.0,2452.9,3.2078]
[1728298401249,1.28612736,2453.0,2452.4,1.11455]
[1728298401250,0.40779,2452.6,2452.5,3.61558]
[1728298401554,0.40779,2452.6,2452.5,3.2078]
[1728298401752,0.40779,2452.6,2452.5,7.6932]
[1728298402151,0.40779,2452.6,2452.5,3.2078]
[1728298402649,0.87777837,2452.7,2452.5,5.2678]
[1728298402852,0.40776,2452.8,2452.7,0.40775]
[1728298403057,0.40775,2452.9,2452.8,0.40774]
[1728298404253,0.3949,2453.0,2452.7,2.06]
[1728298404558,0.3949,2453.0,2452.7,2.46777]
[1728298404559,0.40775,2452.8,2452.7,2.46777]
[1728298405049,0.40777,2452.7,2452.6,0.40777]
[1728298405455,0.40779,2452.6,2452.5,3.61559]
[1728298405756,0.80709,2452.6,2452.5,3.61559]
[1728298406355,0.3993,2452.6,2452.5,5.67559]
[1728298406658,0.80709,2452.6,2452.5,5.67559]
[1728298408453,0.80709,2452.6,2452.5,3.61559]
[1728298410355,0.40778,2452.7,2452.6,0.40777]
[1728298410657,0.40777,2452.8,2452.7,0.40776]
[1728298410855,0.40778,2452.7,2452.6,0.40777]
[1728298412167,0.40779,2452.6,2452.5,3.6156]
[1728298412352,0.81729,2452.6,2452.5,3.2078]
[1728298412558,0.81729,2452.6,2452.5,3.6156]
[1728298412763,0.81729,2452.6,2452.5,4.0257]
[1728298413264,0.81729,2452.6,2452.5,3.6179]
[1728298413460,0.81729,2452.6,2452.5,4.0257]
[1728298413858,0.81729,2452.6,2452.5,3.6179]
[1728298414569,0.3884,2452.9,2452.7,0.40776]
[1728298414760,0.40776,2452.8,2452.7,0.40775]
[1728298414958,0.3884,2452.9,2452.5,9.04531]
[1728298415262,0.79615,2452.9,2452.8,0.40775]
[1728298415857,0.40775,2452.8,2452.7,4.86776]
[1728298422063,0.40775,2452.8,2452.7,0.40776]
[1728298422372,0.80395,2452.8,2452.7,0.40776]
[1728298432667,0.80395,2452.8,2452.7,0.81736]
[1728298435170,0.80395,2452.8,2452.7,4.02516]
[1728298443974,0.80395,2452.8,2452.7,0.81736]
[1728298444175,0.80395,2452.8,2452.7,4.02516]
[1728298448484,0.3962,2452.8,2452.7,8.10196]
[1728298448982,0.3962,2452.8,2452.7,4.02516]
[1728298453182,0.80395,2452.8,2452.7,4.02516]
[1728298458289,0.3962,2452.8,2452.7,4.02516]
[1728298459993,0.80395,2452.8,2452.7,4.02516]
[1728298460490,0.40775,2452.8,2452.7,8.10196]
[1728298460684,0.40775,2452.9,2452.8,0.40774]
[1728298460891,0.40775,2452.9,2452.8,2.46774]
[1728298461089,0.83113,2453.0,2452.9,0.40774]
[1728298461284,0.83113,2453.0,2452.9,2.46774]
[1728298464089,0.83113,2453.0,2452.9,0.40774]
[1728298471794,0.83113,2453.0,2452.9,3.61554]
[1728298473594,0.83113,2453.0,2452.9,0.40774]
[1728298473797,0.83113,2453.0,2452.9,3.61554]
[1728298473992,0.83113,2453.0,2452.9,0.40774]
[1728298474191,0.83113,2453.0,2452.9,3.61554]
[1728298476499,0.83113,2453.0,2452.9,0.40774]
[1728298476802,0.83113,2453.0,2452.9,3.61554]
[1728298477890,0.4234,2453.0,2452.9,3.61554]
[1728298478096,0.095,2453.4,2452.9,10.41287207]
[1728298478297,0.4199,2453.3,2453.2,3.61547]
[1728298478493,0.4199,2453.3,2453.2,5.67547]
[1728298479903,0.82757,2453.3,2453.2,5.67547]
[1728298480097,2.88757,2453.3,2453.2,3.2078]
[1728298480295,2.4799,2453.3,2452.8,6.33607207]
[1728298480598,0.40774,2453.0,2452.9,0.40772]
[1728298482405,2.4475,2453.1,2453.0,0.40772]
[1728298482406,0.79522,2453.1,2453.0,0.40772]
[1728298487706,0.3875,2453.1,2453.0,3.61552]
[1728298487907,0.7952,2453.1,2453.0,3.61552]
[1728298490112,0.7952,2453.1,2453.0,0.40772]
[1728298490313,0.7952,2453.1,2453.0,3.61552]
[1728298492819,0.7952,2453.1,2453.0,4.02512]
[1728298493214,0.3875,2453.1,2453.0,4.02512]
[1728298493722,0.7952,2453.1,2453.0,4.02512]
[1728298495414,0.7952,2453.1,2453.0,3.61552]
[1728298495612,0.7952,2453.1,2453.0,3.2078]
[1728298495816,0.7952,2453.1,2453.0,3.61552]
[1728298496819,0.7952,2453.1,2453.0,5.67552]
[1728298497016,0.7952,2453.1,2453.0,3.2078]
[1728298497220,0.7952,2453.1,2453.0,3.61552]
[1728298499618,0.7952,2453.1,2453.0,0.40772]
[1728298499819,0.7952,2453.1,2453.0,3.61552]
[1728298502224,0.40775,2452.9,2452.8,0.40774]
[1728298502429,0.40775,2452.9,2452.8,0.80294]
[1728298502630,0.40774,2453.0,2452.9,0.40774]
[1728298503232,2.46774,2453.0,2452.9,0.40774]
[1728298503533,0.40774,2452.9,2452.8,0.40775]
[1728298503733,0.40775,2452.8,2452.7,3.2078]
[1728298503924,4.90465,2452.8,2452.7,3.2078]
[1728298504125,5.78406501,2452.8,2452.7,3.2078]
[1728298504333,5.78406501,2452.8,2452.7,3.61557]
[1728298504334,0.40775,2452.8,2452.7,3.61557]
[1728298504738,0.40775,2452.8,2452.7,4.02287]
[1728298505333,0.40774,2452.9,2452.8,0.40775]
[1728298505840,0.40775,2452.8,2452.7,4.02285]
[1728298506624,2.46775,2452.8,2452.7,3.6151]
[1728298506832,2.46775,2452.8,2452.7,3.61557]
[1728298507027,2.46775,2452.8,2452.7,3.2078]
[1728298507725,3.3467765,2452.8,2452.7,3.2078]
[1728298509432,7.4235765,2452.8,2452.7,3.2078]
[1728298509638,1.01948,2452.6,2452.4,3.2078]
[1728298509836,3.07948,2452.6,2452.4,3.2078]
[1728298510237,0.4078,2452.5,2452.4,3.2078]
[1728298511441,6.5454,2452.5,2452.4,3.2078]
[1728298511637,6.5454,2452.5,2452.4,1.9252]
[1728298511843,13.42349908,2452.5,2452.4,1.284]
[1728298513040,7.42349908,2452.5,2452.4,1.284]
[1728298513236,6.5454,2452.5,2452.4,1.284]
[1728298514236,0.4078,2452.5,2452.4,1.284]
[1728298514443,2.4678,2452.5,2452.4,1.284]
[1728298515046,6.9573,2452.5,2452.4,1.284]
[1728298516248,0.40785,2452.2,2452.1,0.4059]
[1728298516448,2.46785,2452.2,2452.1,0.4059]
[1728298516746,2.89075,2452.2,2452.1,0.4059]
[1728298516944,2.4829,2452.2,2451.9,4.4282]
[1728298517143,0.40789,2452.0,2451.9,4.4161]
[1728298518249,0.40789,2452.0,2451.9,1.2083]
[1728298520845,6.54629,2452.0,2451.9,0.3958]
[1728298522349,4.48629,2452.0,2451.9,0.3958]
[1728298522545,6.54629,2452.0,2451.9,0.3958]
[1728298523052,0.40792,2451.8,2451.7,1.21184]
[1728298523243,2.46792,2451.8,2451.7,0.4063]
[1728298523644,2.85992,2451.8,2451.7,0.81424]
[1728298523845,0.40792,2451.8,2451.7,0.81424]
[1728298524047,0.40792,2451.8,2451.7,0.4063]
[1728298524250,0.40792,2451.8,2451.7,0.81424]
[1728298526053,0.40792,2451.8,2451.7,0.4063]
[1728298526251,0.40792,2451.8,2451.7,0.81424]
[1728298526851,0.40792,2451.8,2451.7,0.4063]
[1728298533465,0.40792,2451.8,2451.7,0.81424]
[1728298533660,0.40791,2452.0,2451.9,0.40789]
[1728298533857,0.40791,2452.0,2451.9,2.46789]
[1728298534069,0.40791,2452.0,2451.7,1.42614]
[1728298534070,0.40792,2451.8,2451.7,0.81423]
[1728298534366,2.46792,2451.8,2451.7,0.4063]
[1728298535059,2.46792,2451.8,2451.7,0.81424]
[1728298535272,0.40792,2451.8,2451.7,0.81424]
[1728298535458,0.40792,2451.8,2451.7,2.87424]
[1728298538466,0.40792,2451.8,2451.7,2.4663]
[1728298539267,0.40792,2451.8,2451.7,0.4063]
[1728298539468,0.40792,2451.8,2451.7,0.81424]
[1728298539667,0.40792,2451.8,2451.7,0.4063]
[1728298540971,0.40792,2451.8,2451.7,0.81424]
[1728298544875,0.40791,2452.0,2451.7,0.4063]
[1728298545067,0.40791,2451.9,2451.8,0.4079]
[1728298547267,1.01969,2452.1,2451.8,2.06]
[1728298547467,0.40789,2452.1,2452.0,2.46787]
[1728298548076,0.40789,2452.1,2452.0,2.85397]
[1728298549670,1.01956,2452.4,2452.0,2.4461]
[1728298549867,0.40785,2452.3,2452.2,0.40784]
[1728298550063,1.01956,2452.4,2452.0,2.4461]
[1728298550268,0.40787,2452.2,2452.1,0.40786]
[1728298551362,2.46787,2452.2,2452.0,0.3861]
[1728298551569,0.40787,2452.1,2452.0,0.79397]
[1728298553481,0.40787,2452.1,2452.0,0.3861]
[1728298553776,0.4079,2451.9,2451.8,0.40791]
[1728298556176,0.40794,2451.7,2451.6,1.20674]
[1728298556381,0.40794,2451.7,2451.6,1.63164]
[1728298560778,0.40794,2451.7,2451.6,0.83284]
[1728298562886,2.46794,2451.7,2451.6,0.40795]
[1728298563088,0.40795,2451.6,2451.5,3.61575]
[1728298571600,0.4266,2451.7,2451.5,3.2078]
[1728298571800,2.89455,2451.7,2451.6,0.40795]
[1728298572200,6.97375,2451.7,2451.6,0.40795]
[1728298572902,0.40795,2451.6,2451.5,3.61575]
[1728298579002,2.46795,2451.6,2451.5,3.61575]
[1728298580216,2.46795,2451.6,2451.5,0.40795]
[1728298580413,2.46795,2451.6,2451.5,3.61575]
[1728298583409,2.46795,2451.6,2451.5,3.61577]
[1728298584316,2.46795,2451.6,2451.5,3.2078]
[1728298585418,2.46795,2451.6,2451.5,3.61577]
[1728298586017,2.46795,2451.6,2451.5,3.2078]
[1728298586916,2.46795,2451.6,2451.5,3.61577]
[1728298589812,2.46795,2451.6,2451.5,3.2078]
[1728298590011,6.1392,2451.6,2451.4,0.4205]
[1728298590216,0.408,2451.3,2451.2,0.4273]
[1728298590408,0.40802,2451.2,2451.1,0.3919]
[1728298590823,0.79892,2451.2,2451.1,0.3919]
[1728298591214,0.40804,2451.1,2451.0,0.4273]
[1728298591412,2.46804,2451.1,2451.0,0.4273]
[1728298592615,0.40805,2451.0,2450.9,0.3902]
[1728298592819,0.40807,2450.9,2450.8,0.4152]
[1728298593118,2.46807,2450.9,2450.8,0.4152]
[1728298593324,9.3478,2450.9,2450.4,4.19]
[1728298593521,0.40812,2450.6,2450.5,0.4152]
[1728298594022,2.46812,2450.6,2450.5,0.4152]
[1728298595627,2.06,2450.6,2450.4,0.407]
[1728298595917,2.06,2450.6,2450.0,0.095]
[1728298595918,4.0808,2450.5,2450.0,0.095]
[1728298596118,1.45290811,2450.8,2449.9,0.3913]
[1728298596119,0.40822,2450.0,2449.9,0.3913]
[1728298596924,0.40824,2449.9,2449.8,0.3926]
[1728298597117,0.40824,2449.9,2449.8,0.80085]
[1728298597417,0.40824,2449.9,2449.8,0.3926]
[1728298597418,2.06,2449.9,2449.8,0.3926]
[1728298597617,0.40824,2450.0,2449.9,0.40823]
[1728298597823,0.40824,2450.0,2449.9,0.3913]
[1728298598415,4.86824,2450.0,2449.9,0.3913]
[1728298599222,0.4083,2449.5,2449.4,3.71111]
[1728298599418,0.4083,2449.5,2449.4,3.61611]
[1728298599614,0.4083,2449.5,2449.4,7.69851]
[1728298600018,1.11557,2450.0,2449.4,7.2902]
[1728298600218,1.11557,2450.0,2449.8,0.40824]
[1728298600219,0.40825,2449.9,2449.8,0.40824]
[1728298600425,0.40825,2449.9,2449.5,1.02076]
[1728298600426,0.4083,2449.6,2449.5,0.40829]
[1728298600622,0.4083,2449.6,2449.5,0.83329]
[1728298601128,0.40828,2449.7,2449.6,0.40828]
[1728298602927,0.40829,2449.6,2449.5,0.83329]
[1728298604028,0.40829,2449.6,2449.5,0.425]
[1728298604232,0.40829,2449.6,2449.5,0.8333]
[1728298604432,4.86829,2449.6,2449.5,0.425]
[1728298607023,4.86829,2449.6,2449.5,0.8333]
[1728298607730,0.40829,2449.6,2449.5,0.8333]
[1728298608835,0.40829,2449.6,2449.5,1.2244]
[1728298609235,0.40826,2449.8,2449.7,0.40825]
[1728298612332,4.46,2450.1,2449.5,1.83685]
[1728298612532,4.555,2450.2,2449.7,4.22847]
[1728298612729,4.555,2450.2,2450.0,0.4082]
[1728298612730,0.40822,2450.1,2450.0,0.4082]
[1728298613933,0.40823,2450.0,2449.9,0.40822]
[1728298615037,1.02048,2450.2,2449.8,0.4157]
[1728298615236,0.40823,2450.1,2450.0,0.40821]
[1728298616637,1.50887,2450.5,2450.3,0.40817]
[1728298616638,0.40815,2450.4,2450.3,0.40817]
[1728298616838,0.095,2450.5,2450.0,7.2894]
[1728298616839,0.40817,2450.3,2450.2,0.81088]
[1728298617234,4.46,2450.3,2450.0,3.2078]
[1728298617440,4.8682,2450.1,2450.0,0.40822]
[1728298617632,0.40822,2450.0,2449.9,0.4027]
[1728298618332,0.40824,2449.9,2449.8,0.40824]
[1728298618742,0.40824,2449.9,2449.8,4.48984]
[1728298619036,0.40825,2449.8,2449.7,3.2078]
[1728298619243,0.40825,2449.8,2449.7,3.61607]
[1728298619442,0.40825,2449.8,2449.7,3.2078]
[1728298619738,0.4083,2449.6,2449.5,0.4083]
[1728298619943,0.40832,2449.5,2449.4,0.40831]
[1728298620434,0.40832,2449.5,2449.4,4.49071]
[1728298620634,0.40832,2449.5,2449.4,0.40831]
[1728298620635,4.86832,2449.5,2449.4,0.40831]
[1728298620838,0.40832,2449.4,2449.3,4.01762]
[1728298621034,0.40832,2449.5,2449.4,0.40831]
[1728298621235,0.40832,2449.4,2449.3,4.01761]
[1728298622137,0.40832,2449.5,2449.4,0.4083]
[1728298622739,5.66078,2449.7,2449.6,0.40829]
[1728298622944,4.86828,2449.7,2449.6,0.40829]
[1728298623341,0.095,2450.0,2449.6,13.2902]
[1728298623543,0.40824,2450.0,2449.7,0.4128]
[1728298623745,0.40825,2449.9,2449.8,0.40824]
[1728298625141,0.40825,2449.9,2449.7,0.4128]
[1728298625142,0.40825,2450.0,2449.9,0.40823]
[1728298626242,0.40821,2450.1,2450.0,0.4082]
[1728298626643,8.68826,2450.3,2450.2,0.40818]
[1728298626644,0.40819,2450.3,2450.2,0.40818]
[1728298627349,0.40819,2450.2,2450.1,0.8263]
[1728298628050,0.40818,2450.3,2450.2,0.40817]
[1728298628239,0.40815,2450.5,2450.2,3.2078]
[1728298628439,0.40815,2450.5,2450.4,0.40814]
[1728298628642,3.2078,2450.7,2450.3,4.46]
[1728298628844,0.40808,2450.9,2450.8,0.40807]
[1728298631141,4.86806,2451.0,2450.9,0.40807]
[1728298631338,1.02011,2451.1,2451.0,0.40805]
[1728298631339,0.40805,2451.1,2451.0,0.40805]
[1728298634146,5.28113,2451.2,2451.1,0.40804]
[1728298635240,3.61581,2451.3,2450.9,0.4105]
[1728298635444,3.61581,2451.3,2451.2,0.40802]
[1728298635752,0.81946,2451.6,2451.5,0.40797]
[1728298635950,1.12981,2451.9,2451.3,0.4223]
[1728298635951,5.2479,2451.8,2451.3,0.4223]
[1728298636142,5.2479,2451.8,2451.5,0.40796]
[1728298636143,0.40797,2451.6,2451.5,0.40796]
[1728298636647,0.40797,2451.6,2451.4,0.81178]
[1728298636648,0.40797,2451.5,2451.4,0.81178]
[1728298637043,4.46,2451.5,2451.1,3.2078]
[1728298637258,4.86802,2451.3,2451.2,0.40801]
[1728298637748,4.86802,2451.3,2451.1,3.61583]
[1728298637749,0.40802,2451.2,2451.1,3.61583]
[1728298637941,0.40802,2451.2,2451.1,3.2078]
[1728298638147,0.40804,2451.1,2451.0,0.83034]
[1728298638350,0.40804,2451.1,2451.0,0.4223]
[1728298638646,0.40804,2451.1,2451.0,0.83035]
[1728298638647,4.86804,2451.1,2451.0,0.83035]
[1728298639850,0.40807,2451.0,2450.9,0.40806]
[1728298640157,4.46,2451.1,2450.8,0.83218]
[1728298640158,0.40807,2450.9,2450.8,0.83218]
[1728298642551,4.86807,2450.9,2450.8,0.4241]
[1728298642754,4.86807,2450.9,2450.8,0.83219]
[1728298644050,0.40807,2450.9,2450.8,0.83219]
[1728298646248,0.40809,2450.8,2450.7,4.02579]
[1728298646454,0.40809,2450.8,2450.7,3.2078]
[1728298646650,1.24699,2450.8,2450.7,3.2078]
[1728298647047,1.24699,2450.8,2450.7,3.6159]
[1728298647352,1.24699,2450.8,2450.7,3.2078]
[1728298650057,5.70699,2450.8,2450.7,3.2078]
[1728298653448,5.70699,2450.8,2450.4,0.8252]
[1728298653449,0.40814,2450.5,2450.4,4.44115]
[1728298653649,0.40814,2450.5,2450.4,4.02215]
[1728298655960,4.46,2450.7,2450.6,0.40812]
[1728298656260,4.8681,2450.7,2450.6,0.40812]
[1728298658560,0.4081,2450.7,2450.6,0.40812]